bitfinex/quotes_SOLUSD_20250811
["timestamp","ask_amount","ask_price","bid_price","bid_amount"]
[1754905952932,4.84931341,183.13,183.09,1e-08]
[1754905953119,19.95552898,183.13,183.09,1e-08]
[1754905953349,15.10621557,183.13,183.09,4.84931342]
[1754905954008,5.46089995,183.12,183.09,4.84931342]
[1754905954900,5.46089995,183.12,183.1,4.84931341]
[1754905955102,0.03,183.2,183.11,4.84931341]
[1754905955312,5.48950918,183.17,183.16,4.84931341]
[1754905955716,5.48950918,183.17,183.09,1e-08]
[1754905955910,5.48950918,183.17,183.14,4.84931341]
[1754905956229,0.03,183.17,183.14,4.84931341]
[1754905956724,19.98552898,183.17,183.13,4.84931341]
[1754905956932,19.98552898,183.17,183.09,1e-08]
[1754905957140,19.98552898,183.17,183.12,4.84931341]
[1754905957528,15.13621557,183.17,183.12,4.84931341]
[1754905957729,15.10621557,183.14,183.1,4.84931341]
[1754905958145,5.46060175,183.13,183.09,1e-08]
[1754905958439,5.46060175,183.13,183.09,4.84931342]
[1754905958649,5.46060175,183.13,183.1,4.84931341]
[1754905958815,5.46060175,183.13,183.09,1e-08]
[1754905959150,19.11210614,183.13,183.09,1e-08]
[1754905959328,5.46060175,183.13,183.1,4.84931341]
[1754905959918,5.46060175,183.13,183.12,4.84931341]
[1754905960253,79.46621557,183.15,183.12,4.84931341]
[1754905960254,20.56651916,183.14,183.12,4.84931341]
[1754905962323,20.56651916,183.14,183.09,1e-08]
[1754905962614,20.56651916,183.14,183.12,4.84931341]
[1754905962824,5.46030359,183.14,183.09,1e-08]
[1754905963061,5.46030359,183.14,183.12,4.84931341]
[1754905964226,69.82007507,183.15,183.13,4.84931341]
[1754905964540,38.41,183.17,183.14,4.84931341]
[1754905964740,0.03,183.17,183.16,4.84931341]
[1754905964916,0.03,183.17,183.14,4.84931341]
[1754905965238,5.4894967,183.17,183.14,4.84931341]
[1754905965620,5.4894967,183.17,183.09,5.46150376]
[1754905965827,20.59571227,183.17,183.13,4.84931341]
[1754905967643,5.4894967,183.17,183.15,4.84931341]
[1754905967933,5.4894967,183.17,183.16,4.84931341]
[1754905967934,0.03,183.17,183.16,4.84931341]
[1754905968239,5.48949676,183.17,183.16,4.84931341]
[1754905968932,15.10621557,183.16,183.12,4.84931341]
[1754905969751,15.10621557,183.16,183.13,4.84931341]
[1754905970823,5.46000546,183.15,183.13,4.84931341]
[1754905974534,5.46000546,183.15,183.14,4.84931341]
[1754905974842,5.45970735,183.16,183.14,4.84931341]
[1754905975422,43.8694534,183.17,183.15,4.84931341]
[1754905975639,43.8694534,183.17,183.16,4.84931341]
[1754905975859,26.03,183.17,183.16,4.84931341]
[1754905976034,0.03,183.17,183.16,4.84931341]
[1754905976236,31.48940929,183.17,183.16,4.84931341]
[1754905977640,26.03,183.17,183.16,4.84931341]
[1754905978429,31.48940929,183.17,183.16,4.84931341]
[1754905978837,31.48940929,183.17,183.1,10.31077636]
[1754905979060,31.48940929,183.17,183.15,4.84931341]
[1754905980143,31.48940929,183.17,183.11,5.46115686]
[1754905980542,31.48940929,183.17,183.15,4.84931341]
[1754905982751,31.48940929,183.17,183.11,0.06]
[1754905982953,31.48940929,183.17,183.15,4.84931341]
[1754905983534,31.48940929,183.17,183.16,4.84931341]
[1754905984155,31.48940929,183.17,183.15,4.84931341]
[1754905985338,31.48940929,183.17,183.16,4.84931341]
[1754905985956,31.48940929,183.17,183.15,4.84931341]
[1754905986654,38.34,183.16,183.13,0.06]
[1754905986869,19.95552898,183.14,183.13,0.06]
[1754905987082,58.29552898,183.14,183.13,0.06]
[1754905987582,63.75583257,183.14,183.13,0.06]
[1754905987742,58.90651916,183.14,183.13,0.06]
[1754905987941,63.75583257,183.14,183.13,0.06]
[1754905988369,58.90651916,183.14,183.13,0.06]
[1754905989071,63.75583257,183.14,183.13,0.06]
[1754905989274,58.90651916,183.14,183.13,0.06]
[1754905989447,63.75583257,183.14,183.13,0.06]
[1754905990907,65.94252057,183.14,183.13,0.06]
[1754905991184,65.94252057,183.14,183.13,1e-08]
[1754905994038,61.09320716,183.14,183.13,1e-08]
[1754905994237,65.94252057,183.14,183.13,1e-08]
[1754905998581,15.10621557,183.12,183.11,1e-08]
[1754905998778,58.27552898,183.12,183.11,1e-08]
[1754905999367,63.12484198,183.12,183.11,1e-08]
[1754905999974,68.58574193,183.12,183.11,1e-08]
[1754906000982,15.10621557,183.11,183.1,1e-08]
[1754906001484,19.95552898,183.11,183.1,1e-08]
[1754906001672,24.80484198,183.11,183.1,1e-08]
[1754906001993,30.26604016,183.11,183.1,1e-08]
[1754906007771,25.41672675,183.11,183.1,1e-08]
[1754906007974,30.26604016,183.11,183.1,1e-08]
[1754906014701,89.67672675,183.11,183.1,1e-08]
[1754906014875,84.82741375,183.11,183.1,1e-08]
[1754906015181,58.82741375,183.11,183.1,1e-08]
[1754906016076,63.67672716,183.11,183.1,1e-08]
[1754906016496,65.86377516,183.11,183.1,1e-08]
[1754906021900,65.86377516,183.11,183.09,1e-08]
[1754906022102,19.95552898,183.1,183.09,1e-08]
[1754906022981,25.41702543,183.1,183.09,1e-08]
[1754906024007,15.10621557,183.09,183.08,1e-08]
[1754906024303,58.23552898,183.09,183.08,1e-08]
[1754906025125,63.69732372,183.09,183.08,1e-08]
[1754906026502,68.54663672,183.09,183.08,1e-08]
[1754906030807,41.10621557,183.07,183.06,1e-08]
[1754906030994,84.23552898,183.07,183.06,1e-08]
[1754906031896,89.69792041,183.07,183.06,1e-08]
[1754906032510,89.69792041,183.07,182.88,20.57402642]
[1754906032511,123.83681283,183.07,182.88,20.57402642]
[1754906032699,26.0,182.99,182.95,4.84931341]
[1754906032899,26.0,182.99,182.9,4.84931341]
[1754906032900,64.34,182.99,182.9,4.84931341]
[1754906033198,69.18931341,182.99,182.88,20.57402642]
[1754906033497,4.84931341,182.97,182.88,15.10621557]
[1754906033715,4.84931341,182.96,182.91,4.84931341]
[1754906033911,5.4659743,182.95,182.91,4.84931341]
[1754906034599,5.4659743,182.95,182.88,26.0]
[1754906034801,5.4659743,182.95,182.91,4.84931341]
[1754906035419,5.4659743,182.95,182.85,29.40325499]
[1754906035420,10.31528771,182.95,182.9,4.84931341]
[1754906035720,23.98022348,182.95,182.91,4.84931341]
[1754906036023,19.13091007,182.95,182.91,4.84931341]
[1754906036320,23.98022348,182.95,182.91,4.84931341]
[1754906036701,23.98022348,182.95,182.9,4.84931341]
[1754906037224,4.84931341,182.94,182.86,26.0]
[1754906037420,4.84931341,182.94,182.89,4.84931341]
[1754906037907,4.84931341,182.94,182.86,31.4686297]
[1754906038100,4.84931341,182.94,182.89,4.84931341]
[1754906038300,23.98022348,182.95,182.9,4.84931341]
[1754906038721,10.31528771,182.95,182.91,4.84931341]
[1754906038908,48.65528771,182.95,182.91,4.84931341]
[1754906040030,48.65528771,182.95,182.9,4.84931341]
[1754906040197,43.8059743,182.95,182.91,4.84931341]
[1754906040401,43.8059743,182.95,182.92,4.84931341]
[1754906040624,43.8059743,182.95,182.91,4.84931341]
[1754906041331,48.65528771,182.95,182.87,5.468269]
[1754906041631,43.8059743,182.95,182.91,4.84931341]
[1754906042131,38.34,182.95,182.93,4.84931341]
[1754906042315,5.4660031,182.95,182.92,4.84931341]
[1754906042710,5.4660031,182.95,182.88,5.4679904]
[1754906042904,5.46577228,182.96,182.92,4.84931341]
[1754906043233,5.46577228,182.96,182.88,5.4679904]
[1754906043415,5.46577228,182.96,182.92,4.84931341]
[1754906044317,5.46577228,182.96,182.93,4.84931341]
[1754906044921,69.78540217,182.97,182.94,4.84931341]
[1754906045128,69.78540217,182.97,182.93,4.84931341]
[1754906045728,43.78540217,182.97,182.93,4.84931341]
[1754906046027,48.63471558,182.97,182.92,4.84931341]
[1754906046414,48.63471558,182.97,182.93,4.84931341]
[1754906046730,43.78540217,182.97,182.93,4.84931341]
[1754906047715,43.78540217,182.97,182.91,0.06]
[1754906048128,43.78540217,182.97,182.93,4.84931341]
[1754906048935,43.78540217,182.97,182.91,0.06]
[1754906049236,48.63471558,182.97,182.93,4.84931341]
[1754906049437,43.78540217,182.97,182.93,4.84931341]
[1754906049639,48.63471558,182.97,182.93,4.84931341]
[1754906050226,43.78540217,182.97,182.93,4.84931341]
[1754906050420,43.78540217,182.97,182.91,0.06]
[1754906050421,4.84931341,182.95,182.91,0.06]
[1754906050831,38.3,182.95,182.91,4.90931341]
[1754906051032,38.3,182.95,182.92,4.84931341]
[1754906051823,38.3,182.97,182.94,4.84931341]
[1754906052030,43.76537683,182.97,182.94,4.84931341]
[1754906052240,43.76537683,182.97,182.93,4.84931341]
[1754906052636,43.76537683,182.97,182.91,0.06]
[1754906052940,43.76537683,182.97,182.93,4.84931341]
[1754906053742,43.76537683,182.97,182.91,0.06]
[1754906053924,48.61469024,182.97,182.93,4.84931341]
[1754906054546,43.76537683,182.97,182.93,4.84931341]
[1754906054740,43.76537683,182.97,182.95,4.84931341]
[1754906056129,43.76537683,182.97,182.91,0.06]
[1754906056442,43.76537683,182.97,182.94,4.84931341]
[1754906057244,43.76537683,182.97,182.93,4.84931341]
[1754906057437,43.76537683,182.97,182.95,4.84931341]
[1754906057828,43.76537683,182.97,182.91,0.06]
[1754906058029,43.76537683,182.97,182.95,4.84931341]
[1754906058750,57.31195717,183.07,182.91,0.06]
[1754906058751,38.3,183.01,182.96,4.84931341]
[1754906058943,38.3,183.01,182.99,4.84931341]
[1754906059749,38.3,183.01,182.93,5.46653882]
[1754906059750,10.316706,183.03,183.0,4.84931341]
[1754906059963,38.3,183.02,182.92,31.46677174]
[1754906060140,19.95552898,183.01,182.96,4.84931341]
[1754906060669,5.46448087,183.0,182.97,4.84931341]
[1754906061861,5.46448087,183.0,182.98,4.84931341]
[1754906062059,5.46448087,183.0,182.92,5.46663373]
[1754906062283,5.46448087,183.0,182.98,4.84931341]
[1754906062575,0.03,183.06,183.0,5.46448087]
[1754906062736,0.03,183.06,183.05,4.84931341]
[1754906063360,5.49268982,183.06,183.0,10.31379428]
[1754906063535,5.49268982,183.06,183.05,4.84931341]
[1754906064345,0.03,183.06,183.05,4.84931341]
[1754906065170,0.03,183.06,182.97,5.46537683]
[1754906065337,0.03,183.06,183.04,4.84931341]
[1754906065656,0.03,183.06,183.0,4.84931341]
[1754906065840,0.03,183.06,183.05,4.84931341]
[1754906066661,0.03,183.06,183.04,4.84931341]
[1754906066855,0.03,183.06,182.97,5.46537683]
[1754906067039,0.03,183.06,183.04,4.84931341]
[1754906067241,0.03,183.06,183.05,4.84931341]
[1754906067767,0.03,183.06,183.0,4.84931341]
[1754906067972,19.95552898,183.04,182.99,4.84931341]
[1754906068136,4.84931341,183.02,182.97,4.84931341]
[1754906068481,5.46448087,183.0,182.97,4.84931341]
[1754906068644,10.31379428,183.0,182.95,4.84931341]
[1754906068844,10.31379428,183.0,182.96,4.84931341]
[1754906069046,5.46448087,183.0,182.96,4.84931341]
[1754906069467,10.31379428,183.0,182.96,4.84931341]
[1754906069767,10.31379428,183.0,182.93,0.06]
[1754906069963,10.31379428,183.0,182.96,4.84931341]
[1754906070266,48.65379428,183.0,182.96,4.84931341]
[1754906070969,43.80448087,183.0,182.97,4.84931341]
[1754906071764,43.80388372,183.02,182.99,4.84931341]
[1754906071967,62.31290645,183.02,182.97,4.84931341]
[1754906073150,4.84931341,183.01,182.96,4.84931341]
[1754906073853,57.46359304,183.02,182.93,0.06]
[1754906073854,62.31290645,183.02,182.97,4.84931341]
[1754906074258,57.46359304,183.02,182.97,4.84931341]
[1754906074449,57.46359304,183.02,182.98,4.84931341]
[1754906075066,5.46388372,183.02,183.01,4.84931341]
[1754906075280,5.46388372,183.02,183.0,4.84931341]
[1754906078189,5.46388372,183.02,183.01,4.84931341]
[1754906078782,5.46388372,183.02,182.95,5.46588457]
[1754906078979,5.46388372,183.02,183.01,4.84931341]
[1754906080286,5.46388372,183.02,182.93,47.93273347]
[1754906080471,5.46388372,183.02,182.93,31.52629047]
[1754906080667,5.46388372,183.02,182.98,4.84931341]
[1754906081681,5.46388372,183.02,182.99,4.84931341]
[1754906082864,5.46388372,183.02,182.94,5.46627309]
[1754906083067,5.46388372,183.02,182.99,4.84931341]
[1754906084991,5.46388372,183.02,183.0,4.84931341]
[1754906085995,5.46388372,183.02,182.99,4.84931341]
[1754906087784,5.46388372,183.02,182.94,5.46625621]
[1754906087984,5.46388372,183.02,182.99,4.84931341]
[1754906088594,23.97290645,183.02,182.97,4.84931341]
[1754906088794,30.84931341,182.98,182.93,0.06]
[1754906089011,64.4,182.98,182.93,4.90931341]
[1754906089212,69.24931341,182.98,182.93,4.90931341]
[1754906089510,23.97813233,182.97,182.93,4.90931341]
[1754906089700,23.97813233,182.97,182.93,0.06]
[1754906089913,19.12881892,182.97,182.93,4.90931341]
[1754906090212,5.46537683,182.97,182.93,4.90931341]
[1754906090376,5.46537683,182.97,182.95,4.84931341]
[1754906090579,5.46537683,182.97,182.93,0.06]
[1754906090797,5.46537683,182.97,182.94,4.84931341]
[1754906091198,5.46537683,182.97,182.93,0.06]
[1754906091406,5.46537683,182.97,182.93,4.90931341]
[1754906091704,69.86513934,182.98,182.93,4.90931341]
[1754906091905,74.71445275,182.98,182.93,0.06]
[1754906092205,64.4,182.98,182.95,4.84931341]
[1754906092386,38.4,182.98,182.96,4.84931341]
[1754906093000,26.0,182.99,182.97,4.84931341]
[1754906093478,38.38,183.0,182.96,5.46556876]
[1754906093679,5.463381,183.04,182.99,4.84931341]
[1754906093875,38.38,183.03,182.96,5.46556876]
[1754906094102,38.38,183.03,183.01,4.84931341]
[1754906094288,38.38,183.03,182.96,5.46556876]
[1754906094490,38.38,183.03,183.0,4.84931341]
[1754906095093,38.38,183.03,183.01,4.84931341]
[1754906095401,38.38,183.03,182.96,5.46556876]
[1754906095402,38.38,183.03,183.0,4.84931341]
[1754906095912,26.0,183.03,183.02,4.84931341]
[1754906097800,26.0,183.03,182.98,5.46493157]
[1754906098005,26.0,183.03,183.02,4.84931341]
[1754906099408,26.03,183.06,183.02,4.84931341]
[1754906099596,38.36,183.05,183.03,4.84931341]
[1754906100311,38.36,183.05,183.04,4.84931341]
[1754906100521,0.03,183.06,183.0,4.84931341]
[1754906100702,0.03,183.06,183.05,4.84931341]
[1754906101027,5.49283785,183.06,183.02,4.84931341]
[1754906101800,10.34215126,183.06,182.96,31.46541107]
[1754906102099,4.84931341,183.03,182.94,5.46606432]
[1754906102304,4.84931341,183.02,182.97,4.84931341]
[1754906102504,4.84931341,183.02,182.98,4.84931341]
[1754906102727,4.84931341,183.01,182.93,0.06]
[1754906102924,64.34,183.04,182.96,4.84931341]
[1754906102925,15.10621557,183.03,182.96,4.84931341]
[1754906103098,5.46448087,183.0,182.96,4.84931341]
[1754906104235,5.46448087,183.0,182.93,26.06]
[1754906104436,5.46448087,183.0,182.96,4.84931341]
[1754906106335,10.31379428,183.0,182.93,0.06]
[1754906106638,10.31379428,183.0,182.95,4.84931341]
[1754906106826,5.46448087,183.0,182.95,4.84931341]
[1754906107029,5.46448087,183.0,182.96,4.84931341]
[1754906107409,5.46448087,183.0,182.93,5.52651511]
[1754906107617,5.46448087,183.0,182.98,4.84931341]
[1754906107826,5.46448087,183.0,182.93,5.52651511]
[1754906108141,5.46448087,183.0,182.96,4.84931341]
[1754906108430,10.31379428,183.0,182.96,4.84931341]
[1754906108910,5.46448087,183.0,182.93,5.52654516]
[1754906109241,5.46448087,183.0,182.98,4.84931341]
[1754906110507,119.0,183.0,182.98,4.84931341]
[1754906111537,119.0,183.0,182.99,4.84931341]
[1754906113522,119.0,183.0,182.99,10.3140929]
[1754906115334,119.0,183.0,182.99,4.84931341]
[1754906116044,59.67929545,183.0,182.99,9.69862682]
[1754906117740,59.67929545,183.0,182.99,15.16340631]
[1754906119226,0.3585909,183.0,182.99,10.3140929]
[1754906119439,0.3585909,183.0,182.99,48.6540929]
[1754906120725,0.3585909,183.0,182.99,4.84931341]
[1754906122940,0.3585909,183.0,182.98,0.06]
[1754906124842,5.82307841,183.0,182.98,0.06]
[1754906126423,0.3585909,183.0,182.98,0.06]
[1754906127546,5.82315269,183.0,182.98,0.06]
[1754906128847,0.3585909,183.0,182.98,0.06]
[1754906131546,0.3585909,183.0,182.99,4.84931341]
[1754906134757,0.3885909,183.0,182.99,4.84931341]
[1754906137563,0.3885909,183.0,182.99,10.3140929]
[1754906137946,0.3885909,183.0,182.99,4.84931341]
[1754906141274,0.3885909,183.0,182.99,10.3140929]
[1754906142944,0.3885909,183.0,182.99,4.84931341]
[1754906144884,0.3885909,183.0,182.99,10.3140929]
[1754906145772,0.3885909,183.0,182.99,4.84931341]
[1754906146959,0.3885909,183.0,182.98,38.34]
[1754906147377,0.3885909,183.0,182.99,4.84931341]
[1754906149166,0.3885909,183.0,182.99,10.3140929]
[1754906149372,0.3885909,183.0,182.99,15.16340631]
[1754906150173,0.03,183.02,182.99,15.16340631]
[1754906150378,0.03,183.02,183.01,4.84931341]
[1754906151108,0.03,183.02,183.01,10.31349569]
[1754906151567,0.03,183.02,183.01,48.59349569]
[1754906165599,0.03,183.04,183.01,63.67971126]
[1754906165797,0.03,183.04,183.03,4.84931341]
[1754906165985,0.03,183.04,183.03,43.10931341]
[1754906166480,0.03,183.04,183.03,47.53437855]
[1754906166681,0.03,183.04,183.03,52.99796375]
[1754906168884,0.03,183.06,183.03,52.99796375]
[1754906169188,0.03,183.06,183.05,4.84931341]
[1754906169384,0.03,183.06,183.05,43.10931341]
[1754906170013,0.03,183.06,183.05,48.57230166]
[1754906181620,0.03,183.06,183.05,4.84931341]
[1754906181819,0.03,183.06,183.05,43.10931341]
[1754906182735,0.03,183.06,183.05,48.57230166]
[1754906183319,0.03,183.08,183.07,26.0]
[1754906183531,0.03,183.1,183.09,41.10621557]
[1754906183733,0.03,183.1,183.09,96.34288657]
[1754906184917,0.03,183.1,183.09,101.80468131]
[1754906185633,0.03,183.1,183.09,95.0728166]
[1754906185836,0.03,183.1,183.09,74.55110815]
[1754906186925,0.03,183.1,183.09,79.40042156]
[1754906187636,0.03,183.1,183.09,74.55110815]
[1754906188228,0.03,183.1,183.09,69.08931341]
[1754906188438,0.03,183.1,183.09,74.55110815]
[1754906189839,0.03,183.1,183.09,36.31110815]
[1754906190045,0.03,183.1,183.09,74.55110815]
[1754906192224,0.03,183.1,183.09,36.31110815]
[1754906192424,0.03,183.1,183.09,74.55110815]
[1754906193145,0.03,183.1,183.09,26.0]
[1754906193336,0.03,183.1,183.09,69.08931341]
[1754906194257,0.03,183.1,183.09,73.93862682]
[1754906194562,0.03,183.1,183.09,69.08931341]
[1754906194919,0.03,183.1,183.09,74.55110815]
[1754906195545,0.03,183.1,183.07,5.46229627]
[1754906195747,0.03,183.1,183.06,75.4]
[1754906195748,0.03,183.1,183.08,4.84931341]
[1754906195957,0.03,183.1,183.09,4.84931341]
[1754906197139,0.03,183.1,183.09,10.24480629]
[1754906197444,0.03,183.1,183.09,10.85728762]
[1754906197645,0.03,183.1,183.09,15.70660103]
[1754906199153,0.03,183.1,183.09,30.8128166]
[1754906199361,0.03,183.13,183.11,26.0]
[1754906199531,0.03,183.13,183.11,84.74164879]
[1754906200038,0.03,183.13,183.12,4.84931341]
[1754906200549,0.03,183.13,183.11,79.89233538]
[1754906200859,0.03,183.13,183.12,4.84931341]
[1754906201231,0.03,183.13,183.12,10.31021336]
[1754906203348,0.03,183.13,183.12,4.84931341]
[1754906203552,0.03,183.13,183.12,43.08931341]
[1754906205129,0.03,183.13,183.12,38.24]
[1754906207340,0.03,183.13,183.09,5.46174995]
[1754906207654,0.03,183.13,183.11,4.84931341]
[1754906207846,0.03,183.13,183.12,38.24]
[1754906213365,10.33991516,183.13,183.08,4.84931341]
[1754906213566,10.33991516,183.13,183.09,38.24]
[1754906215784,5.49060175,183.13,183.09,38.24]
[1754906216066,5.49060175,183.13,183.09,43.08931341]
[1754906217657,4.87931341,183.13,183.09,38.24]
[1754906219370,5.46089995,183.12,183.09,38.24]
[1754906220054,5.46089995,183.12,183.09,43.08931341]
[1754906220377,5.49067685,183.13,183.09,38.24]
[1754906220547,5.49067685,183.13,183.09,43.08931341]
[1754906221179,10.33999026,183.13,183.09,38.24]
[1754906221376,4.84931341,183.12,183.06,0.06]
[1754906221550,4.84931341,183.07,183.06,0.06]
[1754906221871,4.84931341,183.08,183.06,0.06]
[1754906222048,4.84931341,183.09,183.06,0.06]
[1754906222777,4.84931341,183.08,183.06,0.06]
[1754906223352,5.46239143,183.07,183.06,0.06]
[1754906223761,10.31149688,183.08,183.06,0.06]
[1754906223969,4.84931341,183.08,183.06,0.06]
[1754906225180,10.31117515,183.09,183.06,0.06]
[1754906225760,31.46154569,183.1,183.06,0.06]
[1754906225964,26.0,183.1,183.06,0.06]
[1754906226358,10.31061507,183.11,183.06,4.90931341]
[1754906228382,4.84931341,183.1,183.06,4.90931341]
[1754906229258,5.46179474,183.09,183.06,0.06]
[1754906230573,10.31110815,183.09,183.06,0.06]
[1754906232681,4.84931341,183.09,183.06,0.06]
[1754906233376,4.84931341,183.1,183.06,4.90931341]
[1754906234377,5.46089995,183.12,183.06,0.06]
[1754906234683,10.31021336,183.12,183.08,4.84931341]
[1754906234885,5.46089995,183.12,183.08,4.84931341]
[1754906235084,26.03,183.13,183.06,5.52256124]
[1754906235264,26.03,183.13,183.1,4.84931341]
[1754906235672,0.03,183.13,183.08,38.24]
[1754906235890,0.03,183.13,183.1,4.84931341]
[1754906238388,0.03,183.13,183.08,43.70202786]
[1754906238571,0.03,183.13,183.1,4.84931341]
[1754906240087,4.76521137,183.14,183.1,4.84931341]
[1754906240585,5.46049102,183.14,183.1,4.84931341]
[1754906240788,5.46049102,183.14,183.11,4.84931341]
[1754906241097,5.46049102,183.14,183.1,4.84931341]
[1754906242287,10.33931887,183.15,183.1,4.84931341]
[1754906244695,5.49000546,183.15,183.11,4.84931341]
[1754906245165,5.49000546,183.15,183.09,5.52177222]
[1754906245365,10.33931887,183.15,183.1,4.84931341]
[1754906245596,4.84931341,183.14,183.1,4.84931341]
[1754906246211,5.49000546,183.15,183.09,0.06]
[1754906246212,4.84931341,183.13,183.09,0.06]
[1754906246485,4.84931341,183.13,183.09,4.90931341]
[1754906247085,5.49000546,183.15,183.09,4.90931341]
[1754906247280,10.33931887,183.15,183.1,4.84931341]
[1754906247479,5.49000546,183.15,183.1,4.84931341]
[1754906247677,10.33931887,183.15,183.1,4.84931341]
[1754906248689,10.33931887,183.15,183.09,0.06]
[1754906248993,10.33931887,183.15,183.1,4.84931341]
[1754906251280,4.84931341,183.14,183.09,4.90931341]
[1754906251984,5.49000546,183.15,183.09,4.90931341]
[1754906252171,4.84931341,183.14,183.09,4.90931341]
[1754906253096,5.46060175,183.13,183.09,4.90931341]
[1754906254779,10.30991516,183.13,183.09,0.06]
[1754906254980,4.84931341,183.1,183.09,0.06]
[1754906255186,10.31080986,183.1,183.09,0.06]
[1754906256909,5.46149645,183.1,183.09,0.06]
[1754906257407,10.31080986,183.1,183.09,0.06]
[1754906258711,5.46149645,183.1,183.09,0.06]
[1754906261906,63.63702543,183.1,183.09,0.06]
[1754906262393,43.68149645,183.1,183.09,0.06]
[1754906262913,5.46130361,183.11,183.09,4.90931341]
[1754906263118,5.46130361,183.11,183.1,4.84931341]
[1754906263298,5.46130361,183.11,183.09,0.06]
[1754906264613,5.46089995,183.12,183.09,0.06]
[1754906266399,10.31021336,183.12,183.09,0.06]
[1754906273811,5.46149645,183.1,183.09,0.06]
[1754906274014,48.53080986,183.1,183.09,0.06]
[1754906274197,58.78771202,183.1,183.09,0.06]
[1754906274515,63.63702543,183.1,183.09,0.06]
[1754906275590,5.46149645,183.1,183.09,0.06]
[1754906275795,43.68149645,183.1,183.09,0.06]
[1754906277215,48.53080986,183.1,183.09,0.06]
[1754906280632,26.0,183.13,183.09,4.90931341]
[1754906280836,0.03,183.15,183.12,4.84931341]
[1754906281122,0.03,183.15,183.09,0.06]
[1754906281123,5.49006523,183.15,183.14,4.84931341]
[1754906281898,5.49006523,183.15,183.09,5.5217221]
[1754906281899,5.49006523,183.15,183.13,4.84931341]
[1754906282319,5.49006523,183.15,183.09,5.5217221]
[1754906282503,5.49006523,183.15,183.12,4.84931341]
[1754906283026,10.33937864,183.15,183.1,4.84931341]
[1754906283796,10.33937864,183.15,183.09,0.06]
[1754906283797,10.33937864,183.15,183.11,4.84931341]
[1754906284718,10.33937864,183.15,183.1,4.84931341]
[1754906285242,10.33937864,183.15,183.09,0.06]
[1754906285404,43.06931341,183.14,183.09,4.90931341]
[1754906285797,38.22,183.14,183.09,0.06]
[1754906286032,4.84931341,183.13,183.09,0.06]
[1754906287399,5.46060175,183.13,183.09,0.06]
[1754906287611,10.30991516,183.13,183.09,0.06]
[1754906288821,5.46060175,183.13,183.09,0.06]
[1754906289019,5.46060175,183.13,183.1,4.84931341]
[1754906289528,5.46060175,183.13,183.09,4.90931341]
[1754906293538,5.46060175,183.13,183.09,0.06]
[1754906293750,5.46060175,183.13,183.09,4.90931341]
[1754906293933,5.46060175,183.13,183.09,0.06]
[1754906294136,5.46060175,183.13,183.09,4.90931341]
[1754906294524,5.46060175,183.13,183.1,4.84931341]
[1754906295140,5.46060175,183.13,183.09,0.06]
[1754906295316,5.46060175,183.13,183.1,4.84931341]
[1754906295513,5.46060175,183.13,183.09,0.06]
[1754906295716,5.46060175,183.13,183.1,4.84931341]
[1754906296539,5.46060175,183.13,183.09,0.06]
[1754906296740,5.46060175,183.13,183.09,4.90931341]
[1754906301053,10.30991516,183.13,183.09,4.90931341]
[1754906301222,4.84931341,183.12,183.09,0.06]
[1754906302226,23.96141955,183.13,183.09,0.06]
[1754906304850,19.11210614,183.13,183.09,0.06]
[1754906305031,19.11210614,183.13,183.09,4.90931341]
[1754906306938,5.46060175,183.13,183.09,4.90931341]
[1754906308122,5.46060175,183.13,183.1,4.84931341]
[1754906310230,5.46060175,183.13,183.09,4.90931341]
[1754906312953,10.30991516,183.13,183.09,4.90931341]
[1754906313563,5.46060175,183.13,183.09,4.90931341]
[1754906315432,5.46060175,183.13,183.1,4.84931341]
[1754906316355,5.46060175,183.13,183.09,0.06]
[1754906316560,5.46060175,183.13,183.1,4.84931341]
[1754906317139,5.46060175,183.13,183.09,4.90931341]
[1754906317456,5.46060175,183.13,183.1,4.84931341]
[1754906318365,5.46060175,183.13,183.12,3.12467486]
[1754906319649,5.46060175,183.13,183.09,0.06]
[1754906319852,5.46060175,183.13,183.12,3.12467486]
[1754906320357,5.46060175,183.13,183.12,4.88197739]
[1754906321972,5.46060175,183.13,183.09,0.06]
[1754906322154,5.46060175,183.13,183.1,4.88197739]
[1754906324246,31.46036881,183.14,183.09,0.06]
[1754906324564,31.46036881,183.14,183.12,4.88197739]
[1754906328253,5.46036881,183.14,183.12,4.88197739]
[1754906328586,5.49000546,183.15,183.12,4.88197739]